[Event "January 2 Early 2024"]
[Site "https://www.chess.com"]
[Date "2024.01.02"]
[Round "3"]
[White "Rodriguez Avila, Alvaro"]
[Black "Rangel, Daniel"]
[Result "0-1"]
[Board "151"]
[TimeControl "180+1"]
[WhiteFideId "24570249"]
[BlackFideId "2124475"]
[WhiteElo "2266"]
[BlackElo "2535"]
[WhiteTeam "ESP"]
[BlackTeam "BRA"]
[WhiteClock "0:00:00"]
[BlackClock "0:00:23"]

1. e4 {[%clk 0:03:00]}  c5 {[%clk 0:02:58]} 2. Nf3 {[%clk 0:03:00]}  g6 {[%clk 0:02:58]} 3. d4 {[%clk 0:02:59]}  cxd4 {[%clk 0:02:59]} 4. Nxd4 {[%clk 0:03:00]}  Bg7 {[%clk 0:02:59]} 5. c4 {[%clk 0:03:01]}  Nc6 {[%clk 0:03:00]} 6. Be3 {[%clk 0:03:01]}  Nf6 {[%clk 0:03:00]} 7. Nc3 {[%clk 0:03:01]}  O-O {[%clk 0:03:01]} 8. Be2 {[%clk 0:03:01]}  Nxd4 {[%clk 0:03:01]} 9. Bxd4 {[%clk 0:03:01]}  d6 {[%clk 0:03:02]} 10. O-O {[%clk 0:02:58]}  Bd7 {[%clk 0:03:02]} 11. h3 {[%clk 0:02:55]}  Bc6 {[%clk 0:03:02]} 12. Qc2 {[%clk 0:02:56]}  a5 {[%clk 0:03:00]} 13. Rad1 {[%clk 0:02:55]}  Qc7 {[%clk 0:02:58]} 14. f4 {[%clk 0:02:28]}  Nd7 {[%clk 0:02:55]} 15. Bxg7 {[%clk 0:02:27]}  Kxg7 {[%clk 0:02:56]} 16. f5 {[%clk 0:02:26]}  Ne5 {[%clk 0:02:54]} 17. Kh1 {[%clk 0:02:05]}  f6 {[%clk 0:02:53]} 18. Qc1 {[%clk 0:01:40]}  g5 {[%clk 0:02:52]} 19. Qe3 {[%clk 0:01:17]}  b6 {[%clk 0:02:47]} 20. Rc1 {[%clk 0:01:17]}  Rh8 {[%clk 0:02:34]} 21. Nd5 {[%clk 0:01:01]}  Bxd5 {[%clk 0:02:30]} 22. cxd5 {[%clk 0:01:02]}  Qb7 {[%clk 0:02:30]} 23. Rc3 {[%clk 0:00:53]}  Rac8 {[%clk 0:02:04]} 24. Rfc1 {[%clk 0:00:54]}  Rc5 {[%clk 0:02:04]} 25. a3 {[%clk 0:00:43]}  a4 {[%clk 0:01:52]} 26. Bd1 {[%clk 0:00:39]}  Qa8 {[%clk 0:01:50]} 27. Qd4 {[%clk 0:00:36]}  Rhc8 {[%clk 0:01:27]} 28. Bxa4 {[%clk 0:00:35]}  Rxc3 {[%clk 0:01:25]} 29. Rxc3 {[%clk 0:00:35]}  Rxc3 {[%clk 0:01:25]} 30. bxc3 {[%clk 0:00:35]}  b5 {[%clk 0:01:23]} 31. Bxb5 {[%clk 0:00:34]}  Qxa3 {[%clk 0:01:24]} 32. Bf1 {[%clk 0:00:23]}  Qc1 {[%clk 0:01:21]} 33. Kg1 {[%clk 0:00:23]}  h5 {[%clk 0:01:17]} 34. c4 {[%clk 0:00:22]}  g4 {[%clk 0:01:15]} 35. hxg4 {[%clk 0:00:22]}  hxg4 {[%clk 0:01:16]} 36. Kf2 {[%clk 0:00:17]}  g3+ {[%clk 0:01:14]} 37. Kg1 {[%clk 0:00:17]}  Ng4 {[%clk 0:01:11]} 38. Qd3 {[%clk 0:00:15]}  Qf4 {[%clk 0:01:03]} 39. Qf3 {[%clk 0:00:15]}  Qxf3 {[%clk 0:00:32]} 40. gxf3 {[%clk 0:00:16]}  Ne3 {[%clk 0:00:32]} 41. Be2 {[%clk 0:00:17]}  Kh6 {[%clk 0:00:31]} 42. f4 {[%clk 0:00:17]}  Kg7 {[%clk 0:00:30]} 43. Bd3 {[%clk 0:00:15]}  Kf8 {[%clk 0:00:29]} 44. Be2 {[%clk 0:00:15]}  Ke8 {[%clk 0:00:30]} 45. e5 {[%clk 0:00:09]}  Kd8 {[%clk 0:00:28]} 46. c5 {[%clk 0:00:05]}  dxc5 {[%clk 0:00:27]} 47. d6 {[%clk 0:00:03]}  c4 {[%clk 0:00:25]} 48. dxe7+ {[%clk 0:00:02]}  Kxe7 {[%clk 0:00:24]} 49. e6 {[%clk 0:00:00]}  c3 {[%clk 0:00:23]} 0-1

[Event "January 2 Early 2024"]
[Site "https://www.chess.com"]
[Date "2024.01.02"]
[Round "3"]
[White "Novikov, Evgenij"]
[Black "Fernandez Hernandez, Gerardo"]
[Result "0-1"]
[Board "152"]
[TimeControl "180+1"]
[WhiteFideId "4125380"]
[BlackFideId "2207400"]
[WhiteElo "2534"]
[BlackElo "2254"]
[WhiteTeam "RUS"]
[BlackTeam "ESP"]
[WhiteClock "0:00:00"]
[BlackClock "0:00:07"]

1. e4 {[%clk 0:02:58]}  e6 {[%clk 0:03:00]} 2. Nf3 {[%clk 0:02:54]}  d5 {[%clk 0:03:00]} 3. e5 {[%clk 0:02:54]}  c5 {[%clk 0:02:59]} 4. d4 {[%clk 0:02:55]}  cxd4 {[%clk 0:02:59]} 5. Qxd4 {[%clk 0:02:56]}  Nc6 {[%clk 0:02:59]} 6. Qf4 {[%clk 0:02:52]}  Nge7 {[%clk 0:02:54]} 7. Bd3 {[%clk 0:02:47]}  Ng6 {[%clk 0:02:52]} 8. Qg3 {[%clk 0:02:46]}  Be7 {[%clk 0:02:34]} 9. h4 {[%clk 0:02:43]}  Qc7 {[%clk 0:01:58]} 10. h5 {[%clk 0:02:24]}  Ngxe5 {[%clk 0:01:56]} 11. Qxg7 {[%clk 0:02:21]}  Nxf3+ {[%clk 0:01:48]} 12. gxf3 {[%clk 0:02:21]}  Qe5+ {[%clk 0:01:48]} 13. Qxe5 {[%clk 0:02:20]}  Nxe5 {[%clk 0:01:49]} 14. Be2 {[%clk 0:02:08]}  Bd7 {[%clk 0:01:40]} 15. f4 {[%clk 0:02:06]}  Nc4 {[%clk 0:01:36]} 16. b3 {[%clk 0:01:59]}  Nd6 {[%clk 0:01:29]} 17. Bb2 {[%clk 0:01:47]}  Rg8 {[%clk 0:01:29]} 18. Nd2 {[%clk 0:01:44]}  O-O-O {[%clk 0:01:15]} 19. O-O-O {[%clk 0:01:43]}  Kb8 {[%clk 0:01:14]} 20. Bd3 {[%clk 0:01:38]}  h6 {[%clk 0:01:07]} 21. Rdg1 {[%clk 0:01:36]}  Bb5 {[%clk 0:01:02]} 22. Bxb5 {[%clk 0:01:27]}  Nxb5 {[%clk 0:01:03]} 23. Bg7 {[%clk 0:01:27]}  Rc8 {[%clk 0:00:49]} 24. Nb1 {[%clk 0:00:55]}  Bf8 {[%clk 0:00:41]} 25. Be5+ {[%clk 0:00:39]}  Bd6 {[%clk 0:00:40]} 26. Kd2 {[%clk 0:00:39]}  Bxe5 {[%clk 0:00:38]} 27. fxe5 {[%clk 0:00:39]}  Nd4 {[%clk 0:00:38]} 28. Rxg8 {[%clk 0:00:38]}  Rxg8 {[%clk 0:00:37]} 29. Ke3 {[%clk 0:00:26]}  Nxc2+ {[%clk 0:00:36]} 30. Kf3 {[%clk 0:00:24]}  Nd4+ {[%clk 0:00:34]} 31. Ke3 {[%clk 0:00:24]}  Nc2+ {[%clk 0:00:29]} 32. Kf3 {[%clk 0:00:24]}  Nb4 {[%clk 0:00:28]} 33. Re1 {[%clk 0:00:19]}  Nxa2 {[%clk 0:00:23]} 34. Na3 {[%clk 0:00:18]}  Nb4 {[%clk 0:00:20]} 35. Nb5 {[%clk 0:00:17]}  a6 {[%clk 0:00:20]} 36. Nd6 {[%clk 0:00:17]}  Nc6 {[%clk 0:00:18]} 37. Kf4 {[%clk 0:00:12]}  Kc7 {[%clk 0:00:16]} 38. f3 {[%clk 0:00:12]}  Rf8 {[%clk 0:00:10]} 39. Kg3 {[%clk 0:00:11]}  f6 {[%clk 0:00:09]} 40. f4 {[%clk 0:00:09]}  fxe5 {[%clk 0:00:09]} 41. fxe5 {[%clk 0:00:10]}  Nxe5 {[%clk 0:00:09]} 42. Nxb7 {[%clk 0:00:05]}  Nd3 {[%clk 0:00:06]} 43. Rd1 {[%clk 0:00:02]}  Nf2 {[%clk 0:00:06]} 44. Rf1 {[%clk 0:00:01]}  Ne4+ {[%clk 0:00:06]} 45. Kg2 {[%clk 0:00:01]}  Rxf1 {[%clk 0:00:07]} 46. Kxf1 {[%clk 0:00:00]}  Kxb7 {[%clk 0:00:07]} 0-1

[Event "January 2 Early 2024"]
[Site "https://www.chess.com"]
[Date "2024.01.02"]
[Round "3"]
[White "Tifferet, Shakked"]
[Black "Gottstein, Claudius-Thomas"]
[Result "1-0"]
[Board "154"]
[TimeControl "180+1"]
[WhiteFideId "2811529"]
[BlackFideId "4653327"]
[WhiteElo "2531"]
[BlackElo "2237"]
[WhiteTeam "ISR"]
[BlackTeam "GER"]
[WhiteClock "0:02:26"]
[BlackClock "0:01:42"]

1. d4 {[%clk 0:02:56]}  d5 {[%clk 0:02:59]} 2. Nf3 {[%clk 0:02:56]}  c5 {[%clk 0:02:56]} 3. c3 {[%clk 0:02:54]}  cxd4 {[%clk 0:02:56]} 4. cxd4 {[%clk 0:02:53]}  Nc6 {[%clk 0:02:56]} 5. Nc3 {[%clk 0:02:52]}  g6 {[%clk 0:02:52]} 6. Bf4 {[%clk 0:02:52]}  a6 {[%clk 0:02:51]} 7. h4 {[%clk 0:02:51]}  Bg7 {[%clk 0:02:51]} 8. h5 {[%clk 0:02:51]}  Nf6 {[%clk 0:02:48]} 9. h6 {[%clk 0:02:49]}  Bf8 {[%clk 0:02:47]} 10. Ne5 {[%clk 0:02:46]}  Qb6 {[%clk 0:02:38]} 11. Na4 {[%clk 0:02:38]}  Qxd4 {[%clk 0:02:24]} 12. Nxc6 {[%clk 0:02:33]}  Qxd1+ {[%clk 0:02:23]} 13. Rxd1 {[%clk 0:02:33]}  bxc6 {[%clk 0:02:23]} 14. Nb6 {[%clk 0:02:34]}  Bb7 {[%clk 0:02:17]} 15. Nxa8 {[%clk 0:02:33]}  Bxa8 {[%clk 0:02:17]} 16. e3 {[%clk 0:02:34]}  Bb7 {[%clk 0:02:14]} 17. Rd3 {[%clk 0:02:35]}  Nd7 {[%clk 0:02:05]} 18. Rb3 {[%clk 0:02:27]}  Nc5 {[%clk 0:02:03]} 19. Rb6 {[%clk 0:02:27]}  Bc8 {[%clk 0:01:42]} 20. Rxc6 {[%clk 0:02:26]} 1-0

[Event "January 2 Early 2024"]
[Site "https://www.chess.com"]
[Date "2024.01.02"]
[Round "3"]
[White "Yashmetov, Mikhail"]
[Black "Harper, Ryan"]
[Result "1/2-1/2"]
[Board "156"]
[TimeControl "180+1"]
[WhiteFideId "24198900"]
[BlackFideId "7700156"]
[WhiteElo "2529"]
[BlackElo "2223"]
[WhiteTeam "RUS"]
[BlackTeam "TTO"]
[WhiteClock "0:01:46"]
[BlackClock "0:00:42"]

1. Nf3 {[%clk 0:03:00]}  Nf6 {[%clk 0:02:57]} 2. b3 {[%clk 0:03:00]}  g6 {[%clk 0:02:57]} 3. Bb2 {[%clk 0:03:01]}  Bg7 {[%clk 0:02:58]} 4. e4 {[%clk 0:03:01]}  d6 {[%clk 0:02:57]} 5. Nc3 {[%clk 0:02:58]}  O-O {[%clk 0:02:57]} 6. Be2 {[%clk 0:02:56]}  c5 {[%clk 0:02:57]} 7. O-O {[%clk 0:02:56]}  Nc6 {[%clk 0:02:58]} 8. d3 {[%clk 0:02:51]}  Bg4 {[%clk 0:02:49]} 9. Ne1 {[%clk 0:02:48]}  Bxe2 {[%clk 0:02:47]} 10. Nxe2 {[%clk 0:02:49]}  e5 {[%clk 0:02:45]} 11. c4 {[%clk 0:02:49]}  a6 {[%clk 0:02:44]} 12. Nc2 {[%clk 0:02:49]}  b5 {[%clk 0:02:42]} 13. Ne3 {[%clk 0:02:49]}  Nd4 {[%clk 0:02:37]} 14. Bxd4 {[%clk 0:02:48]}  exd4 {[%clk 0:02:31]} 15. Nd5 {[%clk 0:02:47]}  Nxd5 {[%clk 0:02:31]} 16. cxd5 {[%clk 0:02:38]}  f5 {[%clk 0:02:29]} 17. Nf4 {[%clk 0:02:36]}  Qd7 {[%clk 0:02:21]} 18. Ne6 {[%clk 0:02:35]}  Rf7 {[%clk 0:02:19]} 19. Qe2 {[%clk 0:02:28]}  Re8 {[%clk 0:02:11]} 20. Rae1 {[%clk 0:02:26]}  b4 {[%clk 0:02:00]} 21. exf5 {[%clk 0:02:25]}  Rxf5 {[%clk 0:01:52]} 22. Nxc5 {[%clk 0:02:12]}  Rxe2 {[%clk 0:01:47]} 23. Nxd7 {[%clk 0:02:12]}  Rfxf2 {[%clk 0:00:56]} 24. Rxe2 {[%clk 0:01:55]}  Rxe2 {[%clk 0:00:56]} 25. Nb6 {[%clk 0:01:55]}  Rxa2 {[%clk 0:00:49]} 26. Nc4 {[%clk 0:01:55]}  Bf8 {[%clk 0:00:45]} 27. Rf2 {[%clk 0:01:45]}  Ra1+ {[%clk 0:00:43]} 28. Rf1 {[%clk 0:01:45]}  Ra2 {[%clk 0:00:43]} 29. Rf2 {[%clk 0:01:45]}  Ra1+ {[%clk 0:00:41]} 30. Rf1 {[%clk 0:01:46]}  Ra2 {[%clk 0:00:42]} 1/2-1/2

[Event "January 2 Early 2024"]
[Site "https://www.chess.com"]
[Date "2024.01.02"]
[Round "3"]
[White "Lye, Sverre"]
[Black "Kochiev, Ivan"]
[Result "0-1"]
[Board "157"]
[TimeControl "180+1"]
[WhiteFideId "1539353"]
[BlackFideId "2917890"]
[WhiteElo "2216"]
[BlackElo "2529"]
[WhiteTeam "NOR"]
[BlackTeam "BUL"]
[WhiteClock "0:00:13"]
[BlackClock "0:01:00"]

1. e4 {[%clk 0:02:55]}  d5 {[%clk 0:02:58]} 2. exd5 {[%clk 0:02:53]}  Qxd5 {[%clk 0:02:59]} 3. Nc3 {[%clk 0:02:53]}  Qa5 {[%clk 0:02:59]} 4. d4 {[%clk 0:02:53]}  c6 {[%clk 0:02:59]} 5. Nf3 {[%clk 0:02:51]}  Nf6 {[%clk 0:03:00]} 6. Bc4 {[%clk 0:02:51]}  Bg4 {[%clk 0:02:59]} 7. h3 {[%clk 0:02:51]}  Bh5 {[%clk 0:02:58]} 8. g4 {[%clk 0:02:52]}  Bg6 {[%clk 0:02:55]} 9. Ne5 {[%clk 0:02:52]}  Nbd7 {[%clk 0:02:51]} 10. Nxd7 {[%clk 0:02:43]}  Nxd7 {[%clk 0:02:50]} 11. h4 {[%clk 0:02:43]}  h5 {[%clk 0:02:43]} 12. g5 {[%clk 0:02:38]}  e6 {[%clk 0:02:39]} 13. Bd2 {[%clk 0:02:36]}  Qb6 {[%clk 0:02:35]} 14. Qe2 {[%clk 0:02:17]}  Qxd4 {[%clk 0:02:09]} 15. O-O-O {[%clk 0:02:08]}  O-O-O {[%clk 0:02:08]} 16. Be3 {[%clk 0:01:51]}  Qe5 {[%clk 0:02:05]} 17. Bxa7 {[%clk 0:01:18]}  Qxe2 {[%clk 0:01:35]} 18. Bxe2 {[%clk 0:01:17]}  b6 {[%clk 0:01:35]} 19. Bf3 {[%clk 0:00:44]}  Kb7 {[%clk 0:01:19]} 20. Rd2 {[%clk 0:00:36]}  Be7 {[%clk 0:01:12]} 21. Rhd1 {[%clk 0:00:36]}  Ne5 {[%clk 0:01:13]} 22. Bxc6+ {[%clk 0:00:17]}  Nxc6 {[%clk 0:01:02]} 23. Nb5 {[%clk 0:00:15]}  Rxd2 {[%clk 0:00:58]} 24. Rxd2 {[%clk 0:00:16]}  Rd8 {[%clk 0:00:59]} 25. Rxd8 {[%clk 0:00:13]}  Bxd8 {[%clk 0:01:00]} 0-1

[Event "January 2 Early 2024"]
[Site "https://www.chess.com"]
[Date "2024.01.02"]
[Round "3"]
[White "Matyunin, Maxim"]
[Black "Montano Vicente, Guadalupe"]
[Result "1-0"]
[Board "159"]
[TimeControl "180+1"]
[WhiteFideId "34106682"]
[BlackFideId "5181399"]
[WhiteElo "2521"]
[BlackElo "2190"]
[WhiteTeam "RUS"]
[BlackTeam "MEX"]
[WhiteClock "0:01:21"]
[BlackClock "0:00:04"]

1. d4 {[%clk 0:02:59]}  Nf6 {[%clk 0:02:58]} 2. Nf3 {[%clk 0:02:59]}  g6 {[%clk 0:02:56]} 3. c4 {[%clk 0:02:59]}  Bg7 {[%clk 0:02:54]} 4. Nc3 {[%clk 0:02:58]}  O-O {[%clk 0:02:53]} 5. Bg5 {[%clk 0:02:57]}  c5 {[%clk 0:02:47]} 6. d5 {[%clk 0:02:56]}  e6 {[%clk 0:02:47]} 7. e3 {[%clk 0:02:56]}  exd5 {[%clk 0:02:22]} 8. cxd5 {[%clk 0:02:55]}  d6 {[%clk 0:02:17]} 9. Be2 {[%clk 0:02:54]}  a6 {[%clk 0:01:56]} 10. a4 {[%clk 0:02:53]}  Nbd7 {[%clk 0:01:51]} 11. O-O {[%clk 0:02:52]}  Re8 {[%clk 0:01:47]} 12. Qc2 {[%clk 0:02:50]}  Qc7 {[%clk 0:01:41]} 13. h3 {[%clk 0:02:22]}  Ne5 {[%clk 0:01:38]} 14. Nxe5 {[%clk 0:02:16]}  Rxe5 {[%clk 0:01:36]} 15. Bf4 {[%clk 0:02:16]}  Bf5 {[%clk 0:01:22]} 16. Qb3 {[%clk 0:02:07]}  Ree8 {[%clk 0:01:16]} 17. a5 {[%clk 0:02:01]}  Rab8 {[%clk 0:01:04]} 18. Rad1 {[%clk 0:01:38]}  b5 {[%clk 0:00:42]} 19. axb6 {[%clk 0:01:37]}  Rxb6 {[%clk 0:00:38]} 20. Qa4 {[%clk 0:01:36]}  Reb8 {[%clk 0:00:35]} 21. Qa5 {[%clk 0:01:26]}  Qa7 {[%clk 0:00:16]} 22. Na4 {[%clk 0:01:24]}  Rb4 {[%clk 0:00:10]} 23. Bxd6 {[%clk 0:01:23]}  Rd8 {[%clk 0:00:04]} 24. Qxd8+ {[%clk 0:01:21]} 1-0

[Event "January 2 Early 2024"]
[Site "https://www.chess.com"]
[Date "2024.01.02"]
[Round "3"]
[White "Dargan, Paul A G"]
[Black "Przybylski, Wojciech"]
[Result "0-1"]
[Board "160"]
[TimeControl "180+1"]
[WhiteFideId "416762"]
[BlackFideId "1117599"]
[WhiteElo "2189"]
[BlackElo "2519"]
[WhiteTeam "ENG"]
[BlackTeam "POL"]
[WhiteClock "0:00:00"]
[BlackClock "0:00:39"]

1. e4 {[%clk 0:03:00]}  e5 {[%clk 0:02:57]} 2. Nf3 {[%clk 0:03:00]}  Nc6 {[%clk 0:02:57]} 3. Bc4 {[%clk 0:03:00]}  Nf6 {[%clk 0:02:56]} 4. d4 {[%clk 0:03:00]}  Nxe4 {[%clk 0:02:53]} 5. O-O {[%clk 0:03:01]}  d5 {[%clk 0:02:52]} 6. Bb5 {[%clk 0:02:49]}  exd4 {[%clk 0:02:50]} 7. Nxd4 {[%clk 0:02:47]}  Bd7 {[%clk 0:02:43]} 8. Re1 {[%clk 0:02:43]}  Bc5 {[%clk 0:02:37]} 9. Bxc6 {[%clk 0:02:39]}  bxc6 {[%clk 0:02:33]} 10. f3 {[%clk 0:02:38]}  f5 {[%clk 0:02:16]} 11. fxe4 {[%clk 0:02:35]}  fxe4 {[%clk 0:02:15]} 12. Rf1 {[%clk 0:02:02]}  Qh4 {[%clk 0:02:04]} 13. c3 {[%clk 0:01:56]}  Bd6 {[%clk 0:01:59]} 14. g3 {[%clk 0:00:38]}  Qh3 {[%clk 0:01:53]} 15. Bf4 {[%clk 0:00:34]}  O-O-O {[%clk 0:01:48]} 16. Qa4 {[%clk 0:00:19]}  Bc5 {[%clk 0:01:35]} 17. Nd2 {[%clk 0:00:13]}  Bb6 {[%clk 0:01:24]} 18. b4 {[%clk 0:00:11]}  Rde8 {[%clk 0:01:17]} 19. Nb3 {[%clk 0:00:09]}  g5 {[%clk 0:00:58]} 20. Bxg5 {[%clk 0:00:07]}  Rhg8 {[%clk 0:00:58]} 21. Bf4 {[%clk 0:00:06]}  Ref8 {[%clk 0:00:50]} 22. Nc5 {[%clk 0:00:06]}  Rxf4 {[%clk 0:00:38]} 23. Rxf4 {[%clk 0:00:05]}  Rxg3+ {[%clk 0:00:39]} 24. hxg3 {[%clk 0:00:02]}  Qxg3+ {[%clk 0:00:40]} 25. Kh1 {[%clk 0:00:02]}  Qxf4 {[%clk 0:00:39]} 26. Qa6+ {[%clk 0:00:00]}  Kd8 {[%clk 0:00:39]} 0-1

[Event "January 2 Early 2024"]
[Site "https://www.chess.com"]
[Date "2024.01.02"]
[Round "3"]
[White "Yushko, Olga"]
[Black "Manukyan, Artyom"]
[Result "0-1"]
[Board "164"]
[TimeControl "180+1"]
[WhiteFideId "14114500"]
[BlackFideId "13305786"]
[WhiteElo "2180"]
[BlackElo "2515"]
[WhiteTeam "UKR"]
[BlackTeam "ARM"]
[WhiteClock "0:00:39"]
[BlackClock "0:00:41"]

1. d4 {[%clk 0:03:00]}  d5 {[%clk 0:03:00]} 2. c4 {[%clk 0:03:00]}  e6 {[%clk 0:02:56]} 3. cxd5 {[%clk 0:03:00]}  exd5 {[%clk 0:02:55]} 4. Nc3 {[%clk 0:03:01]}  Nf6 {[%clk 0:02:51]} 5. Nf3 {[%clk 0:03:02]}  c6 {[%clk 0:02:50]} 6. Bg5 {[%clk 0:03:02]}  Be7 {[%clk 0:02:50]} 7. e3 {[%clk 0:03:03]}  Bf5 {[%clk 0:02:50]} 8. Bd3 {[%clk 0:03:03]}  Bxd3 {[%clk 0:02:46]} 9. Qxd3 {[%clk 0:03:03]}  O-O {[%clk 0:02:46]} 10. O-O {[%clk 0:03:03]}  Nbd7 {[%clk 0:02:45]} 11. a3 {[%clk 0:03:03]}  a5 {[%clk 0:02:44]} 12. Rab1 {[%clk 0:03:01]}  Ne4 {[%clk 0:02:33]} 13. Bf4 {[%clk 0:02:58]}  Ndf6 {[%clk 0:02:28]} 14. Rfc1 {[%clk 0:02:45]}  Re8 {[%clk 0:02:26]} 15. h3 {[%clk 0:02:44]}  h6 {[%clk 0:02:26]} 16. Ne5 {[%clk 0:02:37]}  Nxc3 {[%clk 0:02:17]} 17. Rxc3 {[%clk 0:02:30]}  a4 {[%clk 0:02:15]} 18. Qc2 {[%clk 0:02:22]}  Ne4 {[%clk 0:02:14]} 19. Rd3 {[%clk 0:02:18]}  Bd6 {[%clk 0:02:14]} 20. f3 {[%clk 0:02:12]}  Nf6 {[%clk 0:01:50]} 21. b4 {[%clk 0:02:12]}  Nh5 {[%clk 0:01:29]} 22. Bh2 {[%clk 0:02:03]}  f6 {[%clk 0:01:26]} 23. Ng4 {[%clk 0:01:58]}  Bxh2+ {[%clk 0:01:27]} 24. Kxh2 {[%clk 0:01:51]}  Qd6+ {[%clk 0:01:27]} 25. Kg1 {[%clk 0:01:45]}  Ng3 {[%clk 0:01:18]} 26. b5 {[%clk 0:01:41]}  h5 {[%clk 0:01:03]} 27. Nf2 {[%clk 0:01:36]}  Re6 {[%clk 0:01:03]} 28. bxc6 {[%clk 0:01:35]}  bxc6 {[%clk 0:01:03]} 29. Rb6 {[%clk 0:01:22]}  Rae8 {[%clk 0:01:03]} 30. Nd1 {[%clk 0:01:22]}  Nf5 {[%clk 0:00:59]} 31. Qc1 {[%clk 0:01:13]}  Qg3 {[%clk 0:00:54]} 32. Rxc6 {[%clk 0:01:00]}  Nh4 {[%clk 0:00:43]} 33. Rc2 {[%clk 0:00:39]}  Nxf3+ {[%clk 0:00:42]} 34. Kf1 {[%clk 0:00:39]}  Qe1# {[%clk 0:00:41]} 0-1

[Event "January 2 Early 2024"]
[Site "https://www.chess.com"]
[Date "2024.01.02"]
[Round "3"]
[White "Lopusiewicz, Piotr"]
[Black "Biriukov, Ilja"]
[Result "0-1"]
[Board "165"]
[TimeControl "180+1"]
[WhiteFideId "1116029"]
[BlackFideId "4113373"]
[WhiteElo "2515"]
[BlackElo "2175"]
[WhiteTeam "POL"]
[BlackTeam "RUS"]
[WhiteClock "0:00:00"]
[BlackClock "0:00:14"]

1. d4 {[%clk 0:03:00]}  d5 {[%clk 0:02:53]} 2. c4 {[%clk 0:03:00]}  c6 {[%clk 0:02:53]} 3. Nf3 {[%clk 0:03:01]}  Nf6 {[%clk 0:02:52]} 4. cxd5 {[%clk 0:03:01]}  cxd5 {[%clk 0:02:51]} 5. Nc3 {[%clk 0:03:01]}  Nc6 {[%clk 0:02:50]} 6. Bf4 {[%clk 0:03:02]}  a6 {[%clk 0:02:50]} 7. Qb3 {[%clk 0:03:02]}  e6 {[%clk 0:02:47]} 8. e3 {[%clk 0:03:01]}  Bd6 {[%clk 0:02:46]} 9. Bg3 {[%clk 0:03:01]}  O-O {[%clk 0:02:44]} 10. Bd3 {[%clk 0:03:01]}  h6 {[%clk 0:02:43]} 11. Rc1 {[%clk 0:03:00]}  Bxg3 {[%clk 0:02:34]} 12. hxg3 {[%clk 0:02:59]}  Na5 {[%clk 0:02:30]} 13. Qc2 {[%clk 0:02:54]}  Nc4 {[%clk 0:02:28]} 14. Ne5 {[%clk 0:02:51]}  b5 {[%clk 0:02:25]} 15. Bxc4 {[%clk 0:02:34]}  dxc4 {[%clk 0:02:22]} 16. g4 {[%clk 0:02:27]}  Nh7 {[%clk 0:02:12]} 17. Qe4 {[%clk 0:02:02]}  Bd7 {[%clk 0:01:59]} 18. f4 {[%clk 0:01:49]}  f6 {[%clk 0:01:56]} 19. Nxd7 {[%clk 0:01:27]}  Qxd7 {[%clk 0:01:57]} 20. Kf2 {[%clk 0:01:13]}  Rae8 {[%clk 0:01:53]} 21. Rhd1 {[%clk 0:01:11]}  e5 {[%clk 0:01:42]} 22. Qd5+ {[%clk 0:00:36]}  Qf7 {[%clk 0:01:34]} 23. Qxf7+ {[%clk 0:00:31]}  Rxf7 {[%clk 0:01:35]} 24. dxe5 {[%clk 0:00:30]}  fxe5 {[%clk 0:01:34]} 25. g3 {[%clk 0:00:31]}  Nf6 {[%clk 0:01:27]} 26. Kf3 {[%clk 0:00:25]}  e4+ {[%clk 0:01:27]} 27. Ke2 {[%clk 0:00:20]}  Nxg4 {[%clk 0:01:26]} 28. Rd4 {[%clk 0:00:19]}  Rfe7 {[%clk 0:01:22]} 29. Rcd1 {[%clk 0:00:18]}  Nf6 {[%clk 0:01:11]} 30. Rd6 {[%clk 0:00:18]}  Re6 {[%clk 0:01:11]} 31. a3 {[%clk 0:00:16]}  Kf7 {[%clk 0:01:05]} 32. Na2 {[%clk 0:00:14]}  Rxd6 {[%clk 0:01:02]} 33. Rxd6 {[%clk 0:00:14]}  Re6 {[%clk 0:01:03]} 34. Rd4 {[%clk 0:00:14]}  Ke7 {[%clk 0:01:01]} 35. Nb4 {[%clk 0:00:14]}  a5 {[%clk 0:00:56]} 36. Nc2 {[%clk 0:00:14]}  Rd6 {[%clk 0:00:55]} 37. Rxd6 {[%clk 0:00:11]}  Kxd6 {[%clk 0:00:56]} 38. Nd4 {[%clk 0:00:12]}  Kc5 {[%clk 0:00:50]} 39. Nf5 {[%clk 0:00:12]}  b4 {[%clk 0:00:48]} 40. axb4+ {[%clk 0:00:11]}  axb4 {[%clk 0:00:49]} 41. Nxg7 {[%clk 0:00:11]}  c3 {[%clk 0:00:47]} 42. bxc3 {[%clk 0:00:11]}  bxc3 {[%clk 0:00:48]} 43. Nf5 {[%clk 0:00:11]}  Kc4 {[%clk 0:00:46]} 44. Nd4 {[%clk 0:00:09]}  Ng4 {[%clk 0:00:21]} 45. Nf5 {[%clk 0:00:08]}  Kb3 {[%clk 0:00:17]} 46. Kd1 {[%clk 0:00:04]}  c2+ {[%clk 0:00:16]} 47. Kc1 {[%clk 0:00:04]}  Kc3 {[%clk 0:00:16]} 48. Nd4 {[%clk 0:00:02]}  Nxe3 {[%clk 0:00:15]} 49. Ne2+ {[%clk 0:00:01]}  Kd3 {[%clk 0:00:15]} 50. Ng1 {[%clk 0:00:00]}  Nc4 {[%clk 0:00:14]} 0-1

[Event "January 2 Early 2024"]
[Site "https://www.chess.com"]
[Date "2024.01.02"]
[Round "3"]
[White "Srdanovic, Jovana"]
[Black "Crocker, Philip J"]
[Result "1-0"]
[Board "167"]
[TimeControl "180+1"]
[WhiteFideId "954810"]
[BlackFideId "403180"]
[WhiteElo "2505"]
[BlackElo "2097"]
[WhiteTeam "SRB"]
[BlackTeam "ENG"]
[WhiteClock "0:01:50"]
[BlackClock "0:00:34"]

1. d4 {[%clk 0:03:00]}  f5 {[%clk 0:02:59]} 2. c4 {[%clk 0:02:59]}  Nf6 {[%clk 0:02:58]} 3. g3 {[%clk 0:02:58]}  e6 {[%clk 0:02:58]} 4. Bg2 {[%clk 0:02:58]}  d5 {[%clk 0:02:59]} 5. Nd2 {[%clk 0:02:55]}  Bd6 {[%clk 0:02:57]} 6. Nh3 {[%clk 0:02:54]}  c6 {[%clk 0:02:56]} 7. O-O {[%clk 0:02:54]}  O-O {[%clk 0:02:55]} 8. b3 {[%clk 0:02:51]}  Qe7 {[%clk 0:02:53]} 9. Nf3 {[%clk 0:02:51]}  Ne4 {[%clk 0:02:52]} 10. Bf4 {[%clk 0:02:51]}  Nd7 {[%clk 0:02:47]} 11. Qd3 {[%clk 0:02:42]}  Ndf6 {[%clk 0:02:44]} 12. Qc2 {[%clk 0:02:34]}  Bd7 {[%clk 0:02:40]} 13. Bxd6 {[%clk 0:02:33]}  Qxd6 {[%clk 0:02:39]} 14. Nf4 {[%clk 0:02:33]}  Rae8 {[%clk 0:02:31]} 15. Nd3 {[%clk 0:02:30]}  g5 {[%clk 0:02:27]} 16. c5 {[%clk 0:02:29]}  Qe7 {[%clk 0:02:24]} 17. b4 {[%clk 0:02:29]}  Bc8 {[%clk 0:02:07]} 18. a4 {[%clk 0:02:28]}  Ng4 {[%clk 0:02:01]} 19. h3 {[%clk 0:02:24]}  Ngf6 {[%clk 0:01:57]} 20. Nfe5 {[%clk 0:02:23]}  Nd7 {[%clk 0:01:53]} 21. b5 {[%clk 0:02:20]}  Nxe5 {[%clk 0:01:48]} 22. Nxe5 {[%clk 0:02:21]}  Bd7 {[%clk 0:01:47]} 23. bxc6 {[%clk 0:02:19]}  Bxc6 {[%clk 0:01:45]} 24. Rfb1 {[%clk 0:02:14]}  Qg7 {[%clk 0:01:32]} 25. a5 {[%clk 0:02:10]}  f4 {[%clk 0:01:19]} 26. g4 {[%clk 0:02:03]}  h5 {[%clk 0:01:15]} 27. a6 {[%clk 0:02:00]}  hxg4 {[%clk 0:01:13]} 28. hxg4 {[%clk 0:02:01]}  f3 {[%clk 0:01:01]} 29. exf3 {[%clk 0:02:00]}  Nf6 {[%clk 0:00:54]} 30. axb7 {[%clk 0:02:00]}  Bxb7 {[%clk 0:00:53]} 31. Rxa7 {[%clk 0:01:59]}  Rb8 {[%clk 0:00:50]} 32. c6 {[%clk 0:01:58]}  Rf7 {[%clk 0:00:43]} 33. Nxf7 {[%clk 0:01:54]}  Qxf7 {[%clk 0:00:43]} 34. Raxb7 {[%clk 0:01:51]}  Rxb7 {[%clk 0:00:34]} 35. Rxb7 {[%clk 0:01:50]} 1-0